Cogmind - Beta 14 @@@ ROGUE MODE // 2024.10.15 @ 13:27:38 Player: Ae Result: Destroyed by DX-XWT(R) with Subdweller Machine Gun Performance ------------- Evolutions (0) 0 Regions Visited (2) 400 Robots Destroyed (30) 150 Value Destroyed (364) 364 Prototype IDs (3) 60 Alien Tech Used (0) 0 Bonus (-26) -26 TOTAL SCORE: 948 Bonus ------- Friendly Fire -26 Cogmind --------- Core Integrity 0/250 Matter 27/300 Energy 100/100 System Corruption 0% Temperature Cool (0) Movement Core (700) Ox13 Location -10/Subcaves Parts ------- > --- POWER (1) -------- (None) > --- PROPULSION (2) --- (None) > --- UTILITY (2) ------ High-capacity Storage Unit Seismic Detector > --- WEAPON (2) ------- (None) > --- INVENTORY (20) --- Light Treads High-capacity Matter Pod (0) Structural Scanner Improved Terrain Scanner Light Armor Plating Assault Rifle Assault Rifle Mining Laser Peak State ------------ > --- POWER ------------ Light Ion Engine > --- PROPULSION ------- Light Treads Wheel > --- UTILITY ---------- Small Storage Unit Improved Terrain Scanner > --- WEAPON ----------- Small Laser Assault Rifle > --- INVENTORY -------- Ion Engine Light Treads Compact Wheel Small Laser [Rating: 9] Favorites ----------- Power Ion Engine Engine Ion Engine Propulsion Light Treads Treads Light Treads Wheel Wheel Utility Seismic Detector Device Seismic Detector Storage High-capacity Storage Unit Weapon Assault Rifle Energy Gun Medium Laser Ballistic Gun Assault Rifle Launcher Grenade Launcher Special Weapon Mining Laser Build | -11 -10 -10 ------- Run | Yrd Mat Sub Slots Evolved . | . . . Power . | . . . Propulsion . | . . . Utility . | . . . Weapon . | . . . Parts Attached 27 | 7 15 5 Power 2 | 1 1 . Engine 2 | 1 1 . Core . | . . . Reactor . | . . . Propulsion 4 | 2 2 . Treads 2 | 1 1 . Leg . | . . . Wheel 2 | 1 1 . Hover . | . . . Flight . | . . . Utility 8 | 2 4 2 Device 6 | 1 3 2 Storage 2 | 1 1 . Processor . | . . . Hackware . | . . . Protection . | . . . Artifact . | . . . Weapon 13 | 2 8 3 Energy Gun 5 | 1 4 . Energy Cannon . | . . . Ballistic Gun 3 | 1 1 1 Ballistic Cannon . | . . . Launcher 2 | . . 2 Special Weapon 3 | . 3 . Impact Weapon . | . . . Slashing Weapon . | . . . Piercing Weapon . | . . . Special Melee Weapon . | . . . Unidentified Prototypes . | . . . Parts Lost 7 | . 1 6 Power 1 | . . 1 Propulsion 3 | . 1 2 Utility . | . . . Weapon 3 | . . 3 Highest Loss Streak 5 | . 1 5 To Critical Strikes . | . . . Average Slot Usage (%) 99 | . 99 97 Engine 13 | . 14 13 Treads 13 | . 14 13 Wheel 13 | . 13 13 Device 14 | . 14 14 Storage 14 | . 14 14 Energy Gun 6 | . 4 11 Ballistic Gun 14 | . 15 13 Special Weapon 5 | . 8 . Peak Build Rating 9 | 9 9 8 Average Rating 7 | 6 7 7 On Entrance 5 | . 9 8 Naked Turns . | . . . Heaviest Build 51 | 12 50 51 Greatest Support 20 | 20 16 16 Greatest Overweight (x) 14 | 1 4 14 Average Overweight (x) 2 | . 2 3 Largest Inventory Capacity 20 | 8 20 20 Average Capacity 14 | 7 14 20 Most Carried 11 | 6 11 10 Average Carried 8 | 4 8 9 Final Capacity 20 | 8 20 20 Final Carried 10 | 6 10 8 Class Distribution -------------------- 100% | Mutant Dominant Class ---------------- Mutant | -10/Materials Mutant | -10/Subcaves Resources | -11 -10 -10 ----------- Run | Yrd Mat Sub Matter Collected 542 | 262 215 65 Remotely . | . . . Salvage Created 521 | 225 215 81 Parts 58 | 19 30 9 Haulers Intercepted . | . . . Recyclers Shooed 1 | 1 . . Parts Field Recycled . | . . . Retrieved Matter . | . . . Parts Self-Destructed 9 | . . 9 Prevented . | . . . Kills | -11 -10 -10 ------- Run | Yrd Mat Sub Combat Hostiles Destroyed 18 | . 12 6 Guns 17 | . 12 5 AOE 1 | . . 1 Classes Destroyed 8 | 3 3 2 Worker 2 | 2 . . Builder 1 | . 1 . Tunneler 5 | 5 . . Recycler 1 | 1 . . Turret 2 | . . 2 Watcher 1 | . 1 . Swarmer 16 | . 12 4 Subdweller 2 | . . 2 Best Kill Streak 8 | 8 6 4 Combat Bots Only 6 | . 6 4 Max Kills in Single Turn 2 | 1 2 1 Gunslinging 1 | . 1 . Exploded 1 | . . 1 Melee . | . . . Uniques/NPCs Destroyed . | . . . Combat | -11 -10 -10 -------- Run | Yrd Mat Sub Hostile Shots Fired 124 | . 60 64 Missed 35 | . 13 22 Damage Taken 1009 | . 368 641 Core 257 | . 56 201 Absorbed by Shields . | . . . Core Remaining (%) 100 | 100 . . Volleys Fired 104 | 19 47 38 Largest 2 | 2 2 2 Hottest 120 | 60 120 50 Shots Fired 148 | 38 70 40 Gun 103 | 38 43 22 Cannon . | . . . Launcher 18 | . . 18 Special 27 | . 27 . Kinetic 68 | 19 27 22 Thermal 62 | 19 43 . Explosive 18 | . . 18 Electromagnetic . | . . . Robot Hit Streak 9 | 5 9 7 Robot Miss Streak 4 | 2 4 3 Penetration Max . | . . . Secondary Targets 4 | . 4 . Max Gunslinging Chain 1 | . 1 . Shots Hit Robots 68 | 24 25 19 Core Hits 46 | 9 15 22 Critical Kills . | . . . Critical Parts Destroyed 1 | . 1 . Critical Strikes 1 | . 1 . Destroy 1 | . 1 . Melee Attacks . | . . . Impact . | . . . Slashing . | . . . Piercing . | . . . Sneak Attacks . | . . . Combat Hostiles . | . . . Follow-up Attacks . | . . . Damage Inflicted 1322 | 277 341 704 Guns 789 | 277 338 174 Cannons . | . . . Explosions 530 | . . 530 Melee . | . . . Ramming 3 | . 3 . Kinetic 523 | 134 215 174 Thermal 266 | 143 123 . Explosive 530 | . . 530 Electromagnetic . | . . . Impact . | . . . Slashing . | . . . Piercing . | . . . Highest Corruption . | . . . Average Corruption . | . . . Corruption Purged . | . . . Corruption Blocked . | . . . Overload Shots . | . . . Overflow Damage . | . . . Projectiles . | . . . Explosions . | . . . Melee . | . . . Knockbacks . | . . . Impact . | . . . Kinetic . | . . . Secondary . | . . . Self-Inflicted Damage . | . . . Shots . | . . . Rammed 1 | . 1 . Targets Rammed 1 | . 1 . Kicked . | . . . Crushed . | . . . Highest Temperature 264 | . 80 264 Average Temperature 29 | . 24 151 Received Heat Transfer 417 | . . 417 Siege Activations . | . . . Robots Corrupted . | . . . Combat Hostiles . | . . . Parts Fried . | . . . Impact Corruptions . | . . . Robots Melted . | . . . Combat Hostiles . | . . . Parts Melted . | . . . Heat Transferred 636 | 325 311 . Parts Sabotaged . | . . . Parts Stolen . | . . . Parts Stripped . | . . . Power Chain Reactions . | . . . Alert | -11 -10 -10 ------- Run | Yrd Mat Sub Peak Influence 289 | 40 289 . Initial 26 | . 26 . Average 79 | 14 89 . Maximum Alert Level 1 | . 1 . Low Security (%) 93 | 100 91 . Level 1 6 | . 8 . Level 2 . | . . . Level 3 . | . . . Level 4 . | . . . Level 5 . | . . . High Security . | . . . Max Security . | . . . Squads Dispatched . | . . . Investigation . | . . . Extermination . | . . . Reinforcement . | . . . Assault . | . . . Garrison . | . . . Intercept . | . . . Searches Triggered . | . . . Construction Impeded . | . . . Haulers Reinforced . | . . . Active Scanning Responses . | . . . Cargo Convoy Interrupts . | . . . Stealth | -11 -10 -10 --------- Run | Yrd Mat Sub Distress Signals . | . . . Communications Jammed . | . . . Distress Signals . | . . . Times Spotted 33 | . 19 14 Peak Tracking Total 6 | . 6 6 Tactical Retreats 3 | . 1 2 Traps | -11 -10 -10 ------- Run | Yrd Mat Sub Traps Triggered . | . . . Indirectly . | . . . Trap Hack Attempts . | . . . Triggered . | . . . Disarmed . | . . . Reprogrammed . | . . . Reused . | . . . Traps Extracted . | . . . Installed . | . . . Triggered . | . . . Machines | -11 -10 -10 ---------- Run | Yrd Mat Sub Machines Disabled 4 | . . 4 Max in Single Turn 3 | . . 3 Machines Repaired . | . . . Machines Dismantled . | . . . Machines Sabotaged . | . . . Overloaded Fab Kills . | . . . Hacking | -11 -10 -10 --------- Run | Yrd Mat Sub Machines Accessed 7 | . 7 . Terminals 7 | . 7 . Fabricators . | . . . Repair Stations . | . . . Recycling Units . | . . . Scanalyzers . | . . . Garrison Access . | . . . Total Hacks 27 | . 27 . Successful 19 | . 19 . Failed 8 | . 8 . Catastrophic . | . . . Database Lockouts . | . . . Manual 19 | . 19 . Terminals 27 | . 27 . Fabricators . | . . . Repair Stations . | . . . Recycling Units . | . . . Scanalyzers . | . . . Garrison Access . | . . . Terminal Hacks 4 | . 4 . Prototype ID Bank 2 | . 2 . Unreport Threat 2 | . 2 . Fabricator Hacks . | . . . Repair Station Hacks . | . . . Recycling Unit Hacks . | . . . Scanalyzer . | . . . Garrison Access Hacks . | . . . Unauthorized Hacks 15 | . 15 . Terminals 15 | . 15 . Track 1 | . 1 . Assimilate 1 | . 1 . Botnet 7 | . 7 . Skim 6 | . 6 . Fabricators . | . . . Repair Stations . | . . . Recycling Units . | . . . Scanalyzers . | . . . Garrison Access . | . . . Data Cores Recovered . | . . . Used . | . . . Hacking Detections 6 | . 6 . Full Trace Events . | . . . Feedback Events . | . . . Feedback Blocked . | . . . Robot Schematics Acquired . | . . . Robots Built . | . . . Authchips . | . . . Time . | . . . Total Robot Build Rating . | . . . Part Schematics Acquired . | . . . Parts Built . | . . . Authchips . | . . . Time . | . . . Total Part Build Rating . | . . . Parts Repaired . | . . . Time . | . . . Parts Recycled . | . . . Recycled Matter . | . . . Retrieved Matter . | . . . Retrieved Components . | . . . Parts Scanalyzed . | . . . Part Schematics Acquired . | . . . Parts Damaged . | . . . Bothacking | -11 -10 -10 ------------ Run | Yrd Mat Sub Used RIF Installer . | . . . Robots Hacked . | . . . Non-combat . | . . . Combat . | . . . Robot Hacks Applied . | . . . Relay Couplers Released . | . . . Fabnet Peak Effective % . | . . . Robots Rewired . | . . . Allies Hacked . | . . . Hacks Repelled . | . . . Allies | -11 -10 -10 -------- Run | Yrd Mat Sub Total Allies 1 | . 1 . Largest Group 1 | . 1 1 Highest-Rated Group 10 | . 10 9 Highest-Rated Ally 10 | . 10 9 Total Orders 3 | . 2 1 STAY 2 | . 1 1 FOLLOW 1 | . 1 . Ally Attacks . | . . . Total Damage . | . . . Kills . | . . . Allies Corrupted . | . . . Allies Melted . | . . . Intel | -11 -10 -10 ------- Run | Yrd Mat Sub Robot Analysis Total . | . . . Derelict Logs Recovered 1 | . . 1 Drone Launches . | . . . Drone Recoveries . | . . . Exploration | -11 -10 -10 ------------- Run | Yrd Mat Sub Turns Passed 1736 | 168 1134 434 Spaces Moved 1094 | 81 784 229 Core 2 | 1 . 1 Treads 27 | 27 . . Legs . | . . . Wheels 1065 | 53 784 228 Hover . | . . . Flight . | . . . Fastest Speed 50 | 50 95 130 Average Speed 121 | 115 114 147 Slowest Speed 750 | 160 145 750 Overloaded Moves . | . . . Propulsion Burnouts . | . . . Robots Hopped . | . . . Cave-ins Triggered . | . . . Exploration Rate (%) 39 | 7 99 13 Regions Visited 2 Branch Regions 1 Pre-discovered Areas 2 | . 2 . Known Exits Taken 1 | . 1 . Unknown Exits Taken 1 | 1 . . Scrap Searched . | . . . Spaces Dug 29 | . 24 5 Terrain Destroyed 79 | . 25 54 Melee . | . . . Projectile 25 | . 25 . AOE 54 | . . 54 Terrain Rammed . | . . . Walls Destroyed . | . . . Machines Disabled . | . . . Actions | -11 -10 -10 --------- Run | Yrd Mat Sub Total 1286 | 114 888 284 Wait 35 | . 26 9 Move 1092 | 80 783 229 Hop . | . . . Pick Up 18 | 8 9 1 Fast Attach 6 | 5 1 . Attach 5 | 2 2 1 Detach 1 | . 1 . Swap 16 | . 12 4 Drop 8 | . 6 2 Fire 104 | 19 47 38 Melee . | . . . Ram . | . . . Kick . | . . . Crush 1 | . 1 . Escape Stasis . | . . . Rewire . | . . . Trap . | . . . Miscellaneous . | . . . Route ------- -11/Scrapyard -10/Materials (discovered 6 exits: *Mat x3 / [*Min x2] / *Sub) -10/Subcaves (discovered 2 exits: Mat / *Rec) History --------- Turn | Location | Event 14 | -11/Scrapyard | Discovered new exit (range 14) 169 | -11/Scrapyard | Entered Materials 324 | -10/Materials | Build established: Mutant 623 | -10/Materials | Discovered new exit (range 15) 700 | -10/Materials | Discovered new exit (range 15) 740 | -10/Materials | Discovered new exit (range 15) 770 | -10/Materials | Identified exit to Subcaves 824 | -10/Materials | Identified exit to Materials 835 | -10/Materials | Learned Materials emergency access door positions 1303 | -10/Materials | Entered Subcaves 1303 | -10/Subcaves | Accompanied by 1 ally 1304 | -10/Subcaves | Identified exit to Recycling 1523 | -10/Subcaves | Identified exit to Materials 1726 | -10/Subcaves | Core integrity fell below 50% 1728 | -10/Subcaves | Core integrity fell below 20% 1731 | -10/Subcaves | Ambushed by Subdweller buried in earth 1737 | -10/Subcaves | Destroyed by DX-XWT(R) with Subdweller Machine Gun Last Messages --------------- 01636_ Lgt. Assault Rifle fries itself beyond repair. 01637_ S-10 Pest destroyed. 01641_ Flight Unit fries itself beyond repair. 01642_ Med. Laser destroyed. 01646_ The unstable cave ceiling collapses. 01649_ S-10 Pest destroyed. 01661_ Flight Unit fries itself beyond repair. 01665_ Lgt. Assault Rifle fries itself beyond repair. 01670_ Acquired 39 matter. 01673_ Autobeam Turret destroyed. 01681_ Acquired 17 matter. 10-O5M(R) emerges from concealment. 01719_ Lgt. Treads destroyed. 01725_ Grenade Launcher destroyed. 01725_ Ion Engine destroyed. 01728_ Com. Wheel destroyed. 01728_ Critical hit (Meltdown: +300). 01732_ DX-XWT(R): "ARGHSUB!" 01733_ Assault Rifle destroyed. 01734_ The unstable cave ceiling collapses. Map ----- +----------------------------------------------------+ | ?????????????????????????????????????????????????? | | ?????????????????????????????????????????????????? | | ?????????????????????????????????????????????????# | | ????????????????????????????????????????????????## | | ???????????????????????????????????????????????## | | ???????????????????????????????????????????????# | | ???????????????????????????????????????? ??????# | | ???????????????????????????????????????? #?????# | | ???????????????????????????????????????? #??### | | ?????????????????????????????????????? #?## | | ??????????????????????????????????????#" #?# | | ?????????????########????????????????? #?# | | ??????????#### > # ##????????????????#" ??## | | ??????????# #????????????????# ???# | | ??????????# #????????????????# ??## | | ??????????# #????????????????# #?## | | ?????????## #????????????????# #?# | | ?????????# #????????????????# #?# | | ??????????# #????????????????# #?# | | ??????????## ####????????????????# ### | | ???????????#### #??##??????????????## | | ??????????????# #?##;#####?????????# | | ??????????????# #?#;; # ##????????# | | ??????????????# ##?# ;; ####??#### | | ??????????????#"" ### R;; ## # ### | | ??????????????#"" @ ### | | ??????????????#""" # R # #??# | | ??????????????#""" " "### #??? | | ??????????????# "" " #?? | | ??????????????#"""" "# "? | | ??????????????######## # ! # """ | | ?????????????????????# ;# ""# " | | ?????????????????????# ; ## ## ? | | ?????????????????????##; " ##?# | | ??????????????????????#### ###????#? | | ?????????????????????????# # # #???????? | | ?????????????????????????######## # # " ??????? | | ????????????????????????????????###### "" ?????? | | ?????????????????????????????????????? " ## "????? | | ?????????????????????????????????????? #?# ???? | | ??????????????????????????????????????# #?? ??? | | ??????????????????????????????????????? ???###?? | | ??????????????????????????????????????? ????????? | | ??????????????????????????????????????? ???????? | | ???????????????????????????????????????? ????????? | | ???????????????????????????????????????? ????????? | | ?????????????????????????????????????????????????? | | ?????????????????????????????????????????????????? | | ?????????????????????????????????????????????????? | | ?????????????????????????????????????????????????? | +----------------------------------------------------+ Best States ------------- Heat Dissipation 25 Energy Generation 10 Energy Capacity 250 Matter Stores 300 Matter Capacity 300 Sight Range 16 Terrain Scan Range 16 Terrain Scan Density 10 Evasion (%) 41 Recoil Reduction 1 Item Schematics ----------------- None Robot Schematics ------------------ None Fabricated ------------ Nothing Alien Tech Used ----------------- None Achievements -------------- None Challenges ------------ None Game ------ Seed CargoNeutrinoTrap Manual? 0 Play Time 00:20:11 Cumulative 82.8 hours Start 2024.10.15 @ 13:06:22 End 2024.10.15 @ 13:27:38 Sessions 1 Manual Loads 0 Difficulty Rogue Special Mode None Game No. 136 Rogue 108 Adventurer 28 Explorer 0 Win Type - Total 0 Types 0/0/0/0/0/0/0/0/0 Lore% 27 Gallery% 30 Achievement% 32 Wizard Run 0 Options --------- Layout 0 ASCII 0 Keyboard 1 Movement Numpad Keybinds 0 Fullscreen 2 Font 36/Smallcaps Map View 76x50 Zoom Use 0% Tactical HUD 1 Map Filters NONE Filters NONE Steam 1 RUN: 9e85989e-35bf-455c-a5a8-bb272fef3142